bitfinex/quotes_SOLUSD_20250102
["timestamp","ask_amount","ask_price","bid_price","bid_amount"]
[1735814945241,8.0493226,207.3,207.24,23.776884]
[1735814946130,8.0493226,207.28,207.23,7.38879797]
[1735814946334,8.0493226,207.28,207.22,1.5842]
[1735814947023,8.0493226,207.28,207.23,23.776884]
[1735814947342,8.0493226,207.28,207.2,23.776884]
[1735814947640,8.0493226,207.28,207.22,23.776884]
[1735814948141,8.0493226,207.27,207.22,23.776884]
[1735814948343,8.0493226,207.24,207.18,6.109]
[1735814948833,8.0493226,207.23,207.17,1.5336]
[1735814949210,8.0493226,207.23,207.18,23.776884]
[1735814949546,8.0493226,207.23,207.17,23.776884]
[1735814949729,20.73645514,207.28,207.2,23.776884]
[1735814949913,20.73645514,207.28,207.2,24.50063921]
[1735814950260,8.0493226,207.26,207.2,24.50063921]
[1735814951109,8.0493226,207.25,207.2,24.50063921]
[1735814953126,8.0493226,207.24,207.17,8.0493226]
[1735814953440,8.0493226,207.24,207.16,8.0493226]
[1735814953633,8.0493226,207.23,207.15,8.77308551]
[1735814953811,8.0493226,207.22,207.15,0.72376291]
[1735814954020,8.0493226,207.21,207.15,0.72376291]
[1735814954417,8.0493226,207.21,207.15,24.50064691]
[1735814954648,8.0493226,207.21,207.16,23.776884]
[1735814955234,20.0,207.26,207.16,23.776884]
[1735814955542,8.0493226,207.23,207.17,0.72390566]
[1735814955926,8.0493226,207.22,207.17,0.72390566]
[1735814956232,8.0493226,207.22,207.18,23.776884]
[1735814956435,8.0493226,207.24,207.18,23.776884]
[1735814956641,8.78577774,207.25,207.18,8.0493226]
[1735814957136,0.73645514,207.25,207.18,8.0493226]
[1735814957519,28.0493226,207.26,207.2,23.776884]
[1735814957765,20.0,207.26,207.2,31.8262066]
[1735814958424,20.73645514,207.26,207.2,31.8262066]
[1735814958629,28.78577774,207.26,207.2,23.776884]
[1735814959155,28.0493226,207.26,207.2,23.776884]
[1735814959855,0.73645514,207.25,207.18,8.0493226]
[1735814960045,28.0493226,207.26,207.18,8.0493226]
[1735814960247,28.0493226,207.26,207.2,23.776884]
[1735814961954,0.73645514,207.25,207.19,23.776884]
[1735814963449,8.78577774,207.25,207.19,23.776884]
[1735814964158,8.0493226,207.24,207.17,8.0493226]
[1735814964336,8.0493226,207.21,207.14,8.0493226]
[1735814964540,0.73645514,207.2,207.14,8.0493226]
[1735814966059,0.73645514,207.2,207.15,23.776884]
[1735814966364,8.0493226,207.19,207.12,8.0493226]
[1735814966542,0.73645514,207.19,207.13,31.8262066]
[1735814966960,0.73645514,207.19,207.13,8.0493226]
[1735814968161,8.0493226,207.2,207.13,8.0493226]
[1735814968349,28.0493226,207.21,207.15,23.776884]
[1735814968553,0.73645514,207.2,207.15,23.776884]
[1735814970462,0.73645514,207.2,207.16,8.0493226]
[1735814970660,8.0493226,207.26,207.19,31.8262066]
[1735814970856,0.73645514,207.26,207.21,23.776884]
[1735814972060,0.73645514,207.26,207.19,8.0493226]
[1735814972259,8.78577774,207.26,207.19,8.0493226]
[1735814972474,8.78577774,207.26,207.2,23.776884]
[1735814972632,0.73645514,207.26,207.2,23.776884]
[1735814972954,8.78577774,207.26,207.2,23.776884]
[1735814973153,8.78577774,207.26,207.2,8.0493226]
[1735814973154,0.73645514,207.26,207.2,8.0493226]
[1735814973537,8.78577774,207.26,207.2,23.776884]
[1735814974433,8.0493226,207.25,207.18,8.0493226]
[1735814974674,8.0493226,207.23,207.16,8.0493226]
[1735814974969,0.73645514,207.22,207.16,8.0493226]
[1735814975765,8.0493226,207.24,207.17,8.0493226]
[1735814976066,28.0493226,207.25,207.18,8.0493226]
[1735814976249,0.73645514,207.24,207.18,8.0493226]
[1735814977091,8.78577774,207.24,207.17,8.0493226]
[1735814977453,8.78577774,207.24,207.18,23.776884]
[1735814978562,8.78577774,207.24,207.17,8.0493226]
[1735814980307,8.0493226,207.23,207.16,8.0493226]
[1735814980461,0.73645514,207.22,207.17,23.776884]
[1735814981749,8.78577774,207.22,207.16,23.776884]
[1735814982576,8.78577774,207.24,207.18,23.776884]
[1735814983365,0.73645514,207.24,207.2,23.776884]
[1735814983575,0.73645514,207.25,207.2,23.776884]
[1735814984668,8.0493226,207.24,207.18,23.776884]
[1735814984988,0.73645514,207.23,207.17,23.776884]
[1735814985154,8.78577774,207.23,207.17,23.776884]
[1735814985560,8.0493226,207.24,207.17,8.0493226]
[1735814986272,0.73645514,207.23,207.17,8.0493226]
[1735814986588,8.0493226,207.24,207.17,8.0493226]
[1735814986762,0.73645514,207.23,207.17,8.0493226]
[1735814987189,8.0493226,207.24,207.17,8.0493226]
[1735814987481,28.0493226,207.25,207.17,8.0493226]
[1735814987684,0.73645514,207.24,207.17,8.0493226]
[1735814987886,0.73645514,207.24,207.18,8.0493226]
[1735814988193,30.41057774,207.27,207.19,31.8262066]
[1735814988971,30.41057774,207.27,207.2,8.0493226]
[1735814989294,30.41057774,207.27,207.21,23.776884]
[1735814989886,22.36125514,207.27,207.21,23.776884]
[1735814990794,21.6248,207.27,207.21,23.776884]
[1735814991290,1.6158,207.33,207.26,8.0493226]
[1735814991496,1.6158,207.33,207.29,23.776884]
[1735814993104,1.6158,207.33,207.22,23.776884]
[1735814993278,1.6158,207.33,207.28,23.776884]
[1735814993479,10.40157774,207.33,207.28,23.776884]
[1735814994388,2.35225514,207.33,207.27,31.8262066]
[1735814995511,10.40157774,207.33,207.27,23.776884]
[1735814996583,1.6158,207.33,207.27,8.0493226]
[1735814997003,1.6158,207.33,207.29,23.776884]
[1735814997381,2.35225514,207.33,207.28,23.776884]
[1735814997581,1.6158,207.33,207.28,31.8262066]
[1735814997989,1.6158,207.33,207.29,8.0493226]
[1735814998302,9.6651226,207.33,207.28,23.776884]
[1735814998508,9.6651226,207.33,207.25,8.0493226]
[1735814998699,8.0493226,207.31,207.18,12.79018388]
[1735814999007,8.0493226,207.31,207.25,23.776884]
[1735814999216,8.78577774,207.32,207.25,31.8262066]
[1735814999715,0.73645514,207.32,207.27,23.776884]
[1735815000406,8.78577774,207.32,207.25,8.0493226]
[1735815000609,1.6158,207.33,207.27,8.0493226]
[1735815001130,0.73645514,207.32,207.28,23.776884]
[1735815001813,1.6158,207.33,207.28,23.776884]
[1735815002015,1.6158,207.33,207.24,23.776884]
[1735815002209,1.6158,207.33,207.28,8.0493226]
[1735815002386,1.6158,207.33,207.27,8.0493226]
[1735815002593,1.6158,207.33,207.17,35.1663]
[1735815002594,8.0493226,207.32,207.21,0.72355192]
[1735815002796,0.73645514,207.31,207.25,8.0493226]
[1735815003821,8.78577774,207.31,207.25,23.776884]
[1735815004122,0.73645514,207.31,207.25,8.0493226]
[1735815005089,8.0493226,207.29,207.22,8.0493226]
[1735815005420,0.73645514,207.28,207.22,8.0493226]
[1735815005591,0.73645514,207.28,207.23,23.776884]
[1735815005907,8.78577774,207.28,207.23,23.776884]
[1735815006221,8.78577774,207.28,207.21,8.0493226]
[1735815006222,8.78577774,207.28,207.22,23.776884]
[1735815006909,8.0493226,207.29,207.22,8.0493226]
[1735815007416,0.73645514,207.28,207.22,8.0493226]
[1735815007612,8.0493226,207.29,207.22,8.0493226]
[1735815007914,20.0,207.31,207.24,8.0493226]
[1735815008710,20.0,207.31,207.26,23.776884]
[1735815008919,29.6651226,207.33,207.26,31.8262066]
[1735815009898,9.6651226,207.33,207.26,31.8262066]
[1735815010212,9.6651226,207.33,207.28,23.776884]
[1735815010213,1.6158,207.33,207.28,23.776884]
[1735815010813,1.6158,207.33,207.27,8.0493226]
[1735815010814,9.6651226,207.33,207.27,23.776884]
[1735815012489,8.0493226,207.32,207.25,8.0493226]
[1735815012689,8.0493226,207.32,207.25,31.8262066]
[1735815013527,8.0493226,207.32,207.26,23.776884]
[1735815014527,8.0493226,207.32,207.25,8.0493226]
[1735815014528,8.78577774,207.32,207.24,8.0493226]
[1735815015508,8.78577774,207.32,207.26,23.776884]
[1735815015824,8.0493226,207.32,207.26,23.776884]
[1735815016315,9.6651226,207.33,207.26,23.776884]
[1735815017921,1.6158,207.33,207.29,8.0493226]
[1735815018218,10.38057774,207.38,207.31,31.8262066]
[1735815018525,20.0,207.37,207.31,31.8262066]
[1735815018707,20.0,207.37,207.31,23.776884]
[1735815020236,20.73645514,207.37,207.3,23.776884]
[1735815020394,28.78577774,207.37,207.3,23.776884]
[1735815020594,28.0493226,207.37,207.3,31.8262066]
[1735815021429,8.0493226,207.36,207.3,23.776884]
[1735815021634,8.0493226,207.35,207.28,8.0493226]
[1735815021936,8.0493226,207.34,207.27,8.0493226]
[1735815022103,8.0493226,207.34,207.27,31.8262066]
[1735815022305,8.78577774,207.36,207.29,23.776884]
[1735815022600,28.0493226,207.37,207.31,23.776884]
[1735815022904,8.0493226,207.36,207.31,23.776884]
[1735815023124,8.0493226,207.35,207.29,23.776884]
[1735815023827,20.73645514,207.37,207.28,8.0493226]
[1735815023828,8.0493226,207.34,207.28,23.776884]
[1735815024224,8.0493226,207.33,207.28,23.776884]
[1735815024435,8.0493226,207.32,207.25,8.0493226]
[1735815025297,8.0493226,207.32,207.23,0.72356729]
[1735815025612,8.0493226,207.31,207.25,23.776884]
[1735815026017,8.78577774,207.3,207.23,8.0493226]
[1735815026406,8.78577774,207.3,207.24,23.776884]
[1735815026610,8.0493226,207.29,207.23,8.0493226]
[1735815026809,8.0493226,207.29,207.22,8.0493226]
[1735815027320,8.0493226,207.29,207.23,23.776884]
[1735815027721,8.0493226,207.29,207.23,8.0493226]
[1735815028534,28.0493226,207.3,207.23,8.0493226]
[1735815028718,8.0493226,207.29,207.22,31.8262066]
[1735815030141,28.78577774,207.3,207.22,31.8262066]
[1735815030310,28.78577774,207.3,207.23,8.0493226]
[1735815030512,20.0,207.3,207.25,23.776884]
[1735815030711,20.0,207.3,207.25,31.8262066]
[1735815031130,20.0,207.3,207.27,31.8262066]
[1735815031323,20.0,207.3,207.27,8.0493226]
[1735815031324,11.54,207.3,207.27,8.0493226]
[1735815031531,8.0493226,207.35,207.29,23.776884]
[1735815031843,8.0493226,207.32,207.25,8.0493226]
[1735815032024,8.78577774,207.31,207.24,8.0493226]
[1735815032533,8.0493226,207.32,207.25,8.0493226]
[1735815033035,0.73645514,207.31,207.25,8.0493226]
[1735815034330,8.78577774,207.31,207.24,8.0493226]
[1735815034537,8.0493226,207.3,207.23,8.0493226]
[1735815034738,8.0493226,207.3,207.24,23.776884]
[1735815035371,0.73645514,207.31,207.26,23.776884]
[1735815036538,20.0,207.32,207.26,23.776884]
[1735815036721,8.0493226,207.31,207.25,23.776884]
[1735815037243,28.78577774,207.32,207.25,8.0493226]
[1735815037618,20.0,207.32,207.25,8.0493226]
[1735815037827,20.73645514,207.32,207.25,31.8262066]
[1735815038022,0.73645514,207.34,207.28,31.8262066]
[1735815038229,9.5574226,207.36,207.3,23.776884]
[1735815038718,20.0,207.33,207.3,23.776884]
[1735815039045,20.0,207.33,207.28,8.0493226]
[1735815039740,20.73645514,207.35,207.29,23.776884]
[1735815039948,20.0,207.33,207.29,31.8262066]
[1735815040243,9.5574226,207.36,207.29,31.8262066]
[1735815040623,1.5081,207.36,207.29,31.8262066]
[1735815040942,1.5081,207.36,207.31,23.776884]
[1735815041443,1.5081,207.36,207.33,23.776884]
[1735815041632,1.5918,207.41,207.35,23.776884]
[1735815041827,2.32825514,207.41,207.35,23.776884]
[1735815042442,10.37757774,207.41,207.35,23.776884]
[1735815042745,1.5918,207.41,207.35,23.776884]
[1735815043624,1.5918,207.41,207.35,8.0493226]
[1735815043934,1.5918,207.41,207.33,23.776884]
[1735815043935,29.6411226,207.41,207.33,23.776884]
[1735815044245,8.78577774,207.4,207.35,23.776884]
[1735815044436,8.0493226,207.4,207.33,23.776884]
[1735815044743,8.0493226,207.4,207.33,31.8262066]
[1735815045541,8.0493226,207.39,207.32,8.0493226]
[1735815045842,8.0493226,207.39,207.33,23.776884]
[1735815046522,8.0493226,207.4,207.33,8.0493226]
[1735815047023,30.37757774,207.41,207.34,31.8262066]
[1735815047547,21.5918,207.41,207.34,31.8262066]
[1735815048345,29.6411226,207.41,207.34,31.8262066]
[1735815048529,21.5918,207.41,207.34,31.8262066]
[1735815048930,21.5918,207.41,207.36,23.776884]
[1735815050439,21.5918,207.41,207.34,8.0493226]
[1735815050641,1.5918,207.41,207.36,8.0493226]
[1735815052224,8.0493226,207.44,207.36,8.0493226]
[1735815052548,8.0493226,207.44,207.37,8.0493226]
[1735815052936,8.0493226,207.44,207.38,23.776884]
[1735815053947,8.0493226,207.44,207.36,8.0493226]
[1735815054129,8.0493226,207.44,207.37,23.776884]
[1735815055045,0.73645514,207.43,207.37,23.776884]
[1735815055248,28.78577774,207.43,207.37,23.776884]
[1735815055565,20.0,207.43,207.37,23.776884]
[1735815057647,20.0,207.43,207.37,8.0493226]
[1735815057956,28.0493226,207.43,207.36,8.0493226]
[1735815058353,28.0493226,207.43,207.37,23.776884]
[1735815059457,20.0,207.43,207.37,23.776884]
[1735815061052,8.0493226,207.44,207.37,8.0493226]
[1735815061262,8.0493226,207.45,207.39,23.776884]
[1735815061951,1.626,207.46,207.39,23.776884]
[1735815062253,9.6753226,207.46,207.33,23.776884]
[1735815062428,1.626,207.46,207.39,31.8262066]
[1735815062628,1.626,207.46,207.41,23.776884]
[1735815062857,1.626,207.46,207.41,31.8262066]
[1735815063452,1.626,207.46,207.41,23.776884]
[1735815065455,2.31735514,207.51,207.41,31.8262066]
[1735815065662,8.0493226,207.49,207.43,23.776884]
[1735815065867,8.0493226,207.5,207.43,8.0493226]
[1735815066039,9.6302226,207.51,207.45,23.776884]
[1735815066360,1.5809,207.51,207.45,23.776884]
[1735815067639,1.5809,207.51,207.45,8.77219347]
[1735815068165,1.5809,207.51,207.46,23.776884]
[1735815068640,9.6302226,207.51,207.44,8.0493226]
[1735815068843,8.0493226,207.5,207.43,0.7228452]
[1735815069173,8.0493226,207.5,207.44,23.776884]
[1735815069571,9.6302226,207.51,207.44,23.776884]
[1735815069776,8.0493226,207.49,207.41,15.15625201]
[1735815069945,8.0493226,207.45,207.38,8.0493226]
[1735815070148,8.0493226,207.46,207.38,17.6795456]
[1735815070449,8.0493226,207.47,207.39,31.8262066]
[1735815071165,8.0493226,207.46,207.39,31.8262066]
[1735815072342,8.0493226,207.47,207.39,31.8262066]
[1735815072652,14.36545514,207.51,207.37,8.77243361]
[1735815072653,28.0493226,207.48,207.41,23.776884]
[1735815072964,28.0493226,207.48,207.41,31.8262066]
[1735815073264,28.0493226,207.48,207.43,23.776884]
[1735815073265,20.0,207.48,207.43,23.776884]
[1735815073473,8.78577774,207.5,207.43,23.776884]
[1735815073770,8.0493226,207.49,207.43,23.776884]
[1735815074266,8.78577774,207.5,207.43,23.776884]
[1735815075061,28.78577774,207.5,207.43,8.0493226]
[1735815075547,20.0,207.5,207.45,23.776884]
[1735815076470,20.0,207.5,207.45,8.0493226]
[1735815076868,1.5809,207.51,207.45,8.0493226]
[1735815077555,1.5809,207.51,207.47,23.776884]
[1735815077867,1.5809,207.51,207.47,8.0493226]
[1735815078063,8.0493226,207.54,207.47,8.0493226]
[1735815078368,8.0493226,207.56,207.49,23.776884]
[1735815078541,20.0,207.53,207.49,23.776884]
[1735815078964,8.0493226,207.55,207.49,23.776884]
[1735815079264,8.78577774,207.56,207.49,23.776884]
[1735815080566,8.0493226,207.56,207.49,31.8262066]
[1735815080764,2.25765514,207.6,207.51,23.776884]
[1735815081070,8.0493226,207.59,207.51,23.776884]
[1735815081443,8.0493226,207.58,207.51,23.776884]
[1735815081797,8.0493226,207.59,207.51,31.8262066]
[1735815082168,2.25765514,207.6,207.51,31.8262066]
[1735815082169,8.0493226,207.58,207.51,31.8262066]
[1735815083885,8.0493226,207.58,207.48,23.776884]
[1735815084089,8.0493226,207.58,207.51,8.0493226]
[1735815085426,8.0493226,207.58,207.48,23.776884]
[1735815085596,8.0493226,207.58,207.51,8.0493226]
[1735815090695,8.0493226,207.55,207.48,8.0493226]
[1735815091097,8.0493226,207.54,207.47,8.0493226]
[1735815092095,8.0493226,207.55,207.48,8.0493226]
[1735815092680,8.78577774,207.54,207.47,8.0493226]
[1735815092884,8.0493226,207.53,207.46,8.0493226]
[1735815093485,8.0493226,207.54,207.48,23.776884]
[1735815093686,0.73645514,207.53,207.48,23.776884]
[1735815094389,8.0493226,207.5,207.4,6.5475]
[1735815094592,8.78577774,207.49,207.43,8.0493226]
[1735815094784,8.0493226,207.47,207.4,6.5475]
[1735815094976,8.78577774,207.46,207.37,9.607823]
[1735815095174,8.0493226,207.45,207.38,8.0493226]
[1735815095415,8.78577774,207.45,207.38,8.0493226]
[1735815095710,8.0493226,207.44,207.37,8.0493226]
[1735815095872,8.0493226,207.42,207.36,9.607823]
[1735815096203,8.0493226,207.4,207.34,8.0493226]
[1735815096369,8.0493226,207.4,207.3,0.72332662]
[1735815096573,8.78577774,207.39,207.32,8.0493226]
[1735815096799,8.0493226,207.38,207.31,16.0986456]
[1735815096973,12.0525,207.43,207.31,16.0986456]
[1735815096974,8.0493226,207.35,207.31,8.049323]
[1735815097180,8.0493226,207.33,207.26,8.0493226]
[1735815097382,0.73645514,207.32,207.26,8.0493226]
[1735815097576,0.73645514,207.32,207.27,23.776884]
[1735815097804,6.391,207.39,207.27,23.776884]
[1735815097805,20.0,207.36,207.27,23.776884]
[1735815098111,8.0493226,207.33,207.25,23.776884]
[1735815098401,8.0493226,207.34,207.27,8.0493226]
[1735815098603,0.73645514,207.33,207.27,8.0493226]
[1735815100775,8.78577774,207.33,207.27,8.0493226]
[1735815101603,10.30957774,207.33,207.25,23.776884]
[1735815101785,8.0493226,207.29,207.22,8.0493226]
[1735815101986,0.73645514,207.28,207.22,8.0493226]
[1735815102301,0.73645514,207.28,207.23,23.776884]
[1735815102479,8.0493226,207.29,207.23,23.776884]
[1735815102999,8.0493226,207.3,207.23,8.0493226]
[1735815104098,8.0493226,207.3,207.25,23.776884]
[1735815104990,8.0493226,207.3,207.23,8.0493226]
[1735815105323,8.78577774,207.29,207.23,23.776884]
[1735815107125,8.0493226,207.3,207.23,8.0493226]
[1735815107820,20.0,207.29,207.26,8.0493226]
[1735815107998,20.0,207.29,207.27,23.776884]
[1735815108800,20.0,207.29,207.26,23.776884]
[1735815109127,20.0,207.29,207.2,19.328609]
[1735815109306,8.78577774,207.29,207.2,19.328609]
[1735815109504,8.0493226,207.31,207.24,8.0493226]
[1735815109712,0.73645514,207.3,207.24,8.0493226]
[1735815110013,8.78577774,207.3,207.23,8.0493226]
[1735815110223,8.0493226,207.29,207.22,8.0493226]
[1735815110518,8.0493226,207.27,207.2,8.0493226]
[1735815110697,8.0493226,207.27,207.21,23.776884]
[1735815110892,0.73645514,207.26,207.21,23.776884]
[1735815111617,8.0493226,207.27,207.21,23.776884]
[1735815112215,12.60433149,207.27,207.2,12.60433149]
[1735815112395,12.60433149,207.27,207.21,23.776884]
[1735815113423,12.60433149,207.28,207.21,12.60433149]
[1735815113615,0.73645514,207.27,207.21,12.60433149]
[1735815113919,0.73645514,207.27,207.22,12.60433149]
[1735815114223,12.60433149,207.3,207.23,36.38121549]
[1735815114518,13.34078663,207.29,207.23,23.776884]
[1735815115523,12.60433149,207.28,207.22,23.776884]
[1735815115908,0.73645514,207.27,207.2,12.60433149]
[1735815116218,13.34078663,207.27,207.2,12.60433149]
[1735815116426,12.60433149,207.27,207.2,12.60433149]
[1735815118021,12.60433149,207.28,207.2,12.60433149]
[1735815118528,12.60433149,207.29,207.22,23.776884]
[1735815118917,12.60433149,207.29,207.19,0.72374001]
[1735815118918,13.34078663,207.28,207.2,36.38121549]
[1735815119120,12.60433149,207.27,207.2,12.60433149]
[1735815120725,0.73645514,207.26,207.2,12.60433149]
[1735815120908,0.73645514,207.26,207.21,23.776884]
[1735815121425,0.73645514,207.26,207.19,12.60433149]
[1735815121633,13.34078663,207.26,207.18,36.38121549]
[1735815121807,12.60433149,207.25,207.17,25.20866249]
[1735815122318,12.60433149,207.25,207.18,23.776884]
[1735815122630,0.73645514,207.24,207.18,19.333385]
[1735815123033,12.60433149,207.22,207.18,19.333385]
[1735815123220,13.34078663,207.21,207.13,12.60433149]
[1735815123532,0.73645514,207.21,207.15,12.60433149]
[1735815123724,0.73645514,207.24,207.17,23.776884]
[1735815123916,12.60433149,207.23,207.17,23.776884]
[1735815124227,12.60433149,207.23,207.15,36.38121549]
[1735815124431,12.60433149,207.22,207.15,36.38121549]
[1735815124835,0.73645514,207.21,207.15,23.776884]
[1735815125136,13.34078663,207.21,207.15,23.776884]
[1735815125448,12.60433149,207.2,207.15,23.776884]
[1735815125631,0.73645514,207.19,207.14,19.337032]
[1735815125931,12.60433149,207.18,207.11,12.60433149]
[1735815126121,0.73645514,207.17,207.13,12.604331]
[1735815126324,12.60433149,207.16,207.09,12.60433149]
[1735815126633,12.60433149,207.16,207.11,12.604331]
[1735815126931,12.60433149,207.18,207.11,12.60433149]
[1735815127127,0.73645514,207.17,207.11,12.60433149]
[1735815127331,1.6583,207.17,207.11,12.60433149]
[1735815127531,2.39475514,207.17,207.11,12.60433149]
[1735815127731,2.39475514,207.17,207.12,23.776884]
[1735815128435,1.6583,207.17,207.12,23.776884]
[1735815128631,1.6583,207.17,207.12,12.60433149]
[1735815128839,21.6583,207.17,207.14,23.776884]
[1735815129027,12.60433149,207.21,207.14,36.38121549]
[1735815129230,14.96588663,207.22,207.16,23.776884]
[1735815130041,14.96588663,207.22,207.12,23.776884]
[1735815130042,12.60433149,207.21,207.12,23.776884]
[1735815130337,12.60433149,207.21,207.14,12.60433149]
[1735815130535,14.96588663,207.22,207.15,12.60433149]
[1735815131053,12.60433149,207.21,207.15,23.776884]
[1735815131218,12.60433149,207.19,207.15,23.776884]
[1735815131421,12.60433149,207.2,207.14,23.776884]
[1735815131636,14.96588663,207.22,207.16,23.776884]
[1735815132233,28.07092634,207.21,207.16,23.776884]
[1735815132828,20.0,207.21,207.16,23.776884]
[1735815133521,28.07092634,207.21,207.15,23.776884]
[1735815133842,20.0,207.21,207.15,23.776884]
[1735815134144,28.07092634,207.21,207.15,23.776884]
[1735815135339,28.07092634,207.21,207.14,23.776884]
[1735815135927,28.07092634,207.21,207.14,8.07092634]
[1735815138540,20.0,207.21,207.15,8.07092634]
[1735815138845,20.0,207.21,207.15,31.84781034]
[1735815139149,28.07092634,207.21,207.14,8.07092634]
[1735815139343,28.07092634,207.21,207.14,31.84781034]
[1735815139550,20.0,207.21,207.15,31.84781034]
[1735815140346,20.73645514,207.21,207.15,31.84781034]
[1735815140641,30.45878148,207.21,207.14,8.07092634]
[1735815140821,8.07092634,207.2,207.13,8.07092634]
[1735815141018,8.07092634,207.2,207.14,23.776884]
[1735815141222,8.80738148,207.2,207.14,23.776884]
[1735815141529,29.72232634,207.21,207.14,23.776884]
[1735815142135,29.72232634,207.21,207.14,8.07092634]
[1735815142341,21.6514,207.21,207.16,23.776884]
[1735815143749,1.6514,207.21,207.18,23.776884]
[1735815144045,9.66462634,207.26,207.2,23.776884]
[1735815144342,20.0,207.23,207.2,23.776884]
[1735815145252,0.73645514,207.25,207.2,23.776884]
[1735815146341,1.5937,207.26,207.2,8.07092634]
[1735815146751,1.5937,207.26,207.21,23.776884]
[1735815147143,9.66462634,207.26,207.21,23.776884]
[1735815147547,1.5937,207.26,207.21,23.776884]
[1735815148043,8.07092634,207.29,207.23,23.776884]
[1735815148358,1.5123,207.31,207.25,23.776884]
[1735815150349,6.6054,207.35,207.27,31.84781034]
[1735815150554,14.67632634,207.35,207.28,31.84781034]
[1735815150741,8.07092634,207.35,207.28,31.84781034]
[1735815151925,21.6275,207.36,207.26,0.72356469]
[1735815152124,8.07092634,207.28,207.19,6.4252]
[1735815152348,8.07092634,207.28,207.2,0.72367294]
[1735815152556,8.07092634,207.27,207.2,8.07092634]
[1735815152749,8.07092634,207.26,207.21,23.776884]
[1735815152933,1.621,207.29,207.21,23.776884]
[1735815153131,8.07092634,207.25,207.18,23.776884]
[1735815153330,8.07092634,207.26,207.2,23.776884]
[1735815154352,12.60549472,207.26,207.2,23.776884]
[1735815155146,12.60549472,207.26,207.17,23.776884]
[1735815155351,12.60549472,207.26,207.2,23.776884]
[1735815155854,12.60549472,207.25,207.18,13.32925234]
[1735815156457,12.60549472,207.26,207.2,23.776884]
[1735815156751,12.60549472,207.27,207.2,13.32926194]
[1735815156958,12.60549472,207.26,207.18,0.7237246]
[1735815157153,12.60549472,207.28,207.22,23.776884]
[1735815157338,1.621,207.29,207.22,36.38237872]
[1735815157659,12.60549472,207.33,207.26,12.60549472]
[1735815158034,12.60549472,207.33,207.26,36.38237872]
[1735815158236,8.83455514,207.34,207.27,23.776884]
[1735815158435,12.60549472,207.33,207.27,23.776884]
[1735815158630,14.21969472,207.34,207.27,12.60549472]
[1735815159056,14.21969472,207.34,207.28,23.776884]
[1735815159362,12.60549472,207.32,207.25,12.60549472]
[1735815159540,12.60549472,207.32,207.26,23.776884]
[1735815159859,14.21969472,207.34,207.27,12.60549472]
[1735815160047,14.21969472,207.34,207.28,23.776884]
[1735815160248,12.60549472,207.32,207.28,23.776884]
[1735815160486,12.60549472,207.32,207.25,12.60549472]
[1735815161563,12.60549472,207.33,207.26,12.60549472]
[1735815161867,12.60549472,207.33,207.28,23.776884]
[1735815162041,14.21969472,207.34,207.28,23.776884]
[1735815162243,14.21969472,207.34,207.27,23.776884]
[1735815162642,12.60549472,207.33,207.27,23.776884]
[1735815162860,12.60549472,207.33,207.26,12.60549472]
[1735815163070,13.34194986,207.33,207.26,12.60549472]
[1735815163278,13.34194986,207.33,207.26,23.776884]
[1735815163279,12.60549472,207.32,207.26,23.776884]
[1735815164055,12.60549472,207.32,207.25,23.776884]
[1735815164258,13.34194986,207.31,207.25,23.776884]
[1735815164461,12.60549472,207.3,207.23,13.32908783]
[1735815164672,12.60549472,207.28,207.21,12.60549472]
[1735815165045,12.60549472,207.29,207.22,36.38237872]
[1735815165241,12.60549472,207.29,207.22,12.60549472]
[1735815165871,12.60549472,207.29,207.23,23.776884]
[1735815166076,12.60549472,207.28,207.23,23.776884]
[1735815166671,12.60549472,207.29,207.22,36.38237872]
[1735815166875,0.73645514,207.29,207.22,36.38237872]
[1735815167169,12.60549472,207.29,207.22,23.776884]
[1735815167373,12.60549472,207.29,207.22,36.38237872]
[1735815167583,12.60549472,207.32,207.25,12.60549472]
[1735815168257,19.91844986,207.33,207.27,23.776884]
[1735815168453,14.95614986,207.34,207.27,23.776884]
[1735815168782,14.21969472,207.34,207.27,23.776884]
[1735815169184,12.60549472,207.33,207.27,23.776884]
[1735815169669,14.95614986,207.34,207.27,23.776884]
[1735815170559,14.21969472,207.34,207.27,23.776884]
[1735815170755,14.95614986,207.34,207.27,23.776884]
[1735815170955,12.60549472,207.33,207.27,23.776884]
[1735815172862,12.60549472,207.32,207.26,23.776884]
[1735815173688,13.34194986,207.31,207.23,12.60549472]
[1735815174596,12.60549472,207.3,207.24,23.776884]
[1735815176883,12.60549472,207.31,207.24,13.32911898]
[1735815177686,32.60549472,207.33,207.26,23.776884]
[1735815177890,12.60549472,207.32,207.26,23.776884]